Cogmind - Beta 14 @@@ ROGUE MODE // 2024.09.30 @ 16:33:01 Player: Some Pennies Result: Destroyed by S-10 Pest with Light Assault Rifle Performance ------------- Evolutions (0) 0 Regions Visited (1) 200 Robots Destroyed (11) 55 Value Destroyed (121) 121 Prototype IDs (0) 0 Alien Tech Used (0) 0 Bonus (0) 0 TOTAL SCORE: 376 Bonus ------- None Cogmind --------- Core Integrity 0/250 Matter 139/300 Energy 54/125 System Corruption 0% Temperature Warning (376) Movement Core (150) Ox2 Location -10/Materials Parts ------- > --- POWER (1) -------- Light Ion Engine > --- PROPULSION (2) --- Light Treads > --- UTILITY (2) ------ Small Storage Unit > --- WEAPON (2) ------- Small Laser > --- INVENTORY (8) ---- Signal Interpreter Improved Terrain Scanner Seismic Detector Seismic Detector Peak State ------------ > --- POWER ------------ Light Ion Engine > --- PROPULSION ------- Light Treads Light Treads > --- UTILITY ---------- Small Storage Unit Seismic Detector > --- WEAPON ----------- Medium Laser Medium Laser > --- INVENTORY -------- Light Ion Engine [Rating: 7] Favorites ----------- Power Light Ion Engine Engine Light Ion Engine Propulsion Light Treads Treads Light Treads Utility Small Storage Unit Device Seismic Detector Storage Small Storage Unit Protection Light Armor Plating Weapon Medium Laser Energy Gun Medium Laser Special Weapon Mining Laser Build | -11 -10 ------- Run | Yrd Mat Slots Evolved . | . . Power . | . . Propulsion . | . . Utility . | . . Weapon . | . . Parts Attached 15 | 7 8 Power 2 | 1 1 Engine 2 | 1 1 Core . | . . Reactor . | . . Propulsion 2 | 2 . Treads 2 | 2 . Leg . | . . Wheel . | . . Hover . | . . Flight . | . . Utility 3 | 2 1 Device 1 | 1 . Storage 1 | 1 . Processor . | . . Hackware . | . . Protection 1 | . 1 Artifact . | . . Weapon 8 | 2 6 Energy Gun 5 | 2 3 Energy Cannon . | . . Ballistic Gun . | . . Ballistic Cannon . | . . Launcher . | . . Special Weapon 3 | . 3 Impact Weapon . | . . Slashing Weapon . | . . Piercing Weapon . | . . Special Melee Weapon . | . . Unidentified Prototypes . | . . Parts Lost 6 | . 6 Power 1 | . 1 Propulsion 1 | . 1 Utility 1 | . 1 Weapon 3 | . 3 Highest Loss Streak 6 | . 6 To Critical Strikes . | . . Average Slot Usage (%) 89 | . 89 Engine 11 | . 11 Treads 23 | . 23 Device 7 | . 7 Storage 14 | . 14 Protection 4 | . 4 Energy Gun 24 | . 24 Special Weapon 2 | . 2 Peak Build Rating 7 | 7 7 Average Rating 6 | 6 6 On Entrance 3 | . 7 Naked Turns . | . . Heaviest Build 15 | 13 15 Greatest Support 40 | 40 40 Greatest Overweight (x) 3 | . 3 Average Overweight (x) . | . . Largest Inventory Capacity 8 | 8 8 Average Capacity 7 | 7 8 Most Carried 6 | 5 6 Average Carried 3 | 2 5 Final Capacity 8 | 8 8 Final Carried 4 | 4 4 Class Distribution -------------------- 100% | Mutant Dominant Class ---------------- Mutant | -10/Materials Resources | -11 -10 ----------- Run | Yrd Mat Matter Collected 270 | 270 . Remotely . | . . Salvage Created 294 | 224 70 Parts 24 | 20 4 Haulers Intercepted . | . . Recyclers Shooed . | . . Parts Field Recycled . | . . Retrieved Matter . | . . Parts Self-Destructed . | . . Prevented . | . . Kills | -11 -10 ------- Run | Yrd Mat Combat Hostiles Destroyed 3 | . 3 Guns 2 | . 2 Cannons 1 | . 1 Classes Destroyed 5 | 3 2 Worker 2 | 2 . Tunneler 5 | 5 . Recycler 1 | 1 . Swarmer 1 | . 1 Grunt 2 | . 2 Best Kill Streak 3 | 3 2 Combat Bots Only 2 | . 2 Max Kills in Single Turn 1 | 1 1 Gunslinging . | . . Exploded . | . . Melee . | . . Uniques/NPCs Destroyed . | . . Combat | -11 -10 -------- Run | Yrd Mat Hostile Shots Fired 80 | . 80 Missed 10 | . 10 Damage Taken 857 | . 857 Core 257 | . 257 Absorbed by Shields . | . . Core Remaining (%) 100 | 100 . Volleys Fired 35 | 11 24 Largest 2 | 2 2 Hottest 100 | 100 100 Shots Fired 56 | 20 36 Gun 53 | 20 33 Cannon . | . . Launcher . | . . Special 3 | . 3 Kinetic . | . . Thermal 56 | 20 36 Explosive . | . . Electromagnetic . | . . Robot Hit Streak 6 | 6 3 Robot Miss Streak 4 | 1 4 Penetration Max . | . . Secondary Targets . | . . Shots Hit Robots 29 | 14 15 Core Hits 16 | 9 7 Critical Kills . | . . Critical Parts Destroyed . | . . Critical Strikes 3 | 3 . Burn 3 | 3 . Melee Attacks . | . . Impact . | . . Slashing . | . . Piercing . | . . Sneak Attacks . | . . Combat Hostiles . | . . Follow-up Attacks . | . . Damage Inflicted 399 | 177 222 Guns 367 | 177 190 Cannons . | . . Explosions . | . . Melee . | . . Ramming 8 | . 8 Kinetic . | . . Thermal 391 | 177 214 Explosive . | . . Electromagnetic . | . . Impact . | . . Slashing . | . . Piercing . | . . Highest Corruption . | . . Average Corruption . | . . Corruption Purged . | . . Corruption Blocked . | . . Overload Shots . | . . Overflow Damage . | . . Projectiles . | . . Explosions . | . . Melee . | . . Knockbacks . | . . Impact . | . . Kinetic . | . . Secondary . | . . Self-Inflicted Damage 3 | . 3 Shots . | . . Rammed 5 | . 5 Targets Rammed 5 | . 5 Kicked . | . . Crushed . | . . Highest Temperature 599 | 117 599 Average Temperature 261 | 35 389 Received Heat Transfer 363 | . 363 Effects 20 | . 20 Shutdowns 3 | . 3 Energy Bleed 2 | . 2 Interference 5 | . 5 Matter Decay 4 | . 4 Short Circuit 2 | . 2 Damage (minor) 1 | . 1 Damage (major) 1 | . 1 Damage (core) 2 | . 2 Siege Activations . | . . Robots Corrupted . | . . Combat Hostiles . | . . Parts Fried . | . . Impact Corruptions . | . . Robots Melted . | . . Combat Hostiles . | . . Parts Melted 7 | 6 1 Heat Transferred 1345 | 740 605 Parts Sabotaged . | . . Parts Stolen . | . . Parts Stripped . | . . Power Chain Reactions . | . . Alert | -11 -10 ------- Run | Yrd Mat Peak Influence 112 | 40 112 Initial 26 | . 26 Average 44 | 18 74 Maximum Alert Level . | . . Low Security (%) 100 | 100 100 Level 1 . | . . Level 2 . | . . Level 3 . | . . Level 4 . | . . Level 5 . | . . High Security . | . . Max Security . | . . Squads Dispatched 1 | . 1 Investigation 1 | . 1 Extermination . | . . Reinforcement . | . . Assault . | . . Garrison . | . . Intercept . | . . Searches Triggered . | . . Construction Impeded . | . . Haulers Reinforced . | . . Active Scanning Responses . | . . Cargo Convoy Interrupts . | . . Stealth | -11 -10 --------- Run | Yrd Mat Distress Signals 1 | . 1 Communications Jammed . | . . Distress Signals . | . . Times Spotted 10 | . 10 Peak Tracking Total 8 | . 8 Tactical Retreats 1 | . 1 Traps | -11 -10 ------- Run | Yrd Mat Traps Triggered . | . . Indirectly . | . . Trap Hack Attempts . | . . Triggered . | . . Disarmed . | . . Reprogrammed . | . . Reused . | . . Traps Extracted . | . . Installed . | . . Triggered . | . . Machines | -11 -10 ---------- Run | Yrd Mat Machines Disabled . | . . Max in Single Turn . | . . Machines Repaired . | . . Machines Dismantled . | . . Machines Sabotaged . | . . Overloaded Fab Kills . | . . Hacking | -11 -10 --------- Run | Yrd Mat Machines Accessed 1 | . 1 Terminals . | . . Fabricators . | . . Repair Stations . | . . Recycling Units 1 | . 1 Scanalyzers . | . . Garrison Access . | . . Total Hacks 2 | . 2 Successful 1 | . 1 Failed 1 | . 1 Catastrophic . | . . Database Lockouts . | . . Manual 1 | . 1 Terminals . | . . Fabricators . | . . Repair Stations . | . . Recycling Units 2 | . 2 Scanalyzers . | . . Garrison Access . | . . Terminal Hacks . | . . Fabricator Hacks . | . . Repair Station Hacks . | . . Recycling Unit Hacks . | . . Scanalyzer . | . . Garrison Access Hacks . | . . Unauthorized Hacks 1 | . 1 Terminals . | . . Fabricators . | . . Repair Stations . | . . Recycling Units 1 | . 1 Tunnel 1 | . 1 Scanalyzers . | . . Garrison Access . | . . Data Cores Recovered . | . . Used . | . . Hacking Detections . | . . Full Trace Events . | . . Feedback Events . | . . Feedback Blocked . | . . Robot Schematics Acquired . | . . Robots Built . | . . Authchips . | . . Time . | . . Total Robot Build Rating . | . . Part Schematics Acquired . | . . Parts Built . | . . Authchips . | . . Time . | . . Total Part Build Rating . | . . Parts Repaired . | . . Time . | . . Parts Recycled . | . . Recycled Matter . | . . Retrieved Matter . | . . Retrieved Components . | . . Parts Scanalyzed . | . . Part Schematics Acquired . | . . Parts Damaged . | . . Bothacking | -11 -10 ------------ Run | Yrd Mat Used RIF Installer . | . . Robots Hacked . | . . Non-combat . | . . Combat . | . . Robot Hacks Applied . | . . Relay Couplers Released . | . . Fabnet Peak Effective % . | . . Robots Rewired . | . . Allies Hacked . | . . Hacks Repelled . | . . Allies | -11 -10 -------- Run | Yrd Mat Total Allies . | . . Largest Group . | . . Highest-Rated Group . | . . Highest-Rated Ally . | . . Total Orders . | . . Ally Attacks . | . . Total Damage . | . . Kills . | . . Allies Corrupted . | . . Allies Melted . | . . Intel | -11 -10 ------- Run | Yrd Mat Robot Analysis Total . | . . Derelict Logs Recovered . | . . Drone Launches . | . . Drone Recoveries . | . . Exploration | -11 -10 ------------- Run | Yrd Mat Turns Passed 346 | 186 160 Spaces Moved 133 | 89 44 Core 5 | 2 3 Treads 128 | 87 41 Legs . | . . Wheels . | . . Hover . | . . Flight . | . . Fastest Speed 50 | 50 100 Average Speed 158 | 157 159 Slowest Speed 200 | 160 200 Overloaded Moves . | . . Propulsion Burnouts . | . . Robots Hopped . | . . Cave-ins Triggered . | . . Exploration Rate (%) 8 | 5 12 Regions Visited 1 Branch Regions . Pre-discovered Areas 1 | . 1 Known Exits Taken . | . . Unknown Exits Taken 1 | 1 . Scrap Searched . | . . Spaces Dug 1 | . 1 Terrain Destroyed 2 | . 2 Melee . | . . Projectile 2 | . 2 AOE . | . . Terrain Rammed . | . . Walls Destroyed . | . . Machines Disabled . | . . Actions | -11 -10 --------- Run | Yrd Mat Total 199 | 112 87 Wait 4 | . 4 Move 132 | 88 44 Hop . | . . Pick Up 7 | 5 2 Fast Attach 8 | 7 1 Attach 2 | . 2 Detach . | . . Swap 5 | . 5 Drop 1 | 1 . Fire 35 | 11 24 Melee . | . . Ram 5 | . 5 Kick . | . . Crush . | . . Escape Stasis . | . . Rewire . | . . Trap . | . . Miscellaneous . | . . Route ------- -11/Scrapyard -10/Materials History --------- Turn | Location | Event 6 | -11/Scrapyard | Discovered new exit (range 15) 187 | -11/Scrapyard | Entered Materials 301 | -10/Materials | Build established: Mutant 318 | -10/Materials | Core integrity fell below 50% 324 | -10/Materials | Core integrity fell below 20% 347 | -10/Materials | Destroyed by S-10 Pest with Light Assault Rifle Last Messages --------------- 00323_ Med. Laser destroyed. 00325_ Slammed into G-34 Mercenary. 00327_ Acquired Sml. Laser. 00333_ Overheating: System interference. 00333_ Sml. Laser temporarily disabled. 00333_ Slammed into G-34 Mercenary. 00334_ Sml. Laser broken. 00334_ Destabilizing: Short circuit. 00334_ G-34 Mercenary destroyed. 00334_ K-01 Serf collects debris. 00337_ Power failure, Lgt. Ion Engine shutdown. 00338_ K-01 Serf collects debris. 00339_ R-06 Scavenger collects Heat Sink. 00341_ Flight Unit melted. 00341_ S-10 Pest destroyed. 00342_ K-01 Serf collects debris. 00342_ R-06 Scavenger collects Lgt. Ion Engine. 00344_ Mining Laser destroyed. 00346_ K-01 Serf collects debris. 00346_ Slammed into S-10 Pest. Map ----- +----------------------------------------------------+ | ?????????????????????????????????????????? | | ?????????????????????????????????????????? | | ?????????????????????????????????????????? | | ?????????????????????????????????????????? | | ?????????????????????????????????????????? | | ?????????????????????????????????????????? | | ?????????????????????????????????????????? | | ?????????????????????????????????????????? | | ?????????????????????????????????????????? | | ?????????????????????????????????????????? | | ?????????????????????????????????????????? | | ?????????????????????????????????##??????? | | ??????? ??????####???????????### ?????? | | ??????# ????? !?????????? ??????? | | ??????+ ???? !????????? ????????? | | ??????? """" !????????" ?????????? | | ???????# """" ????????" ??????????? | | ???????# """" ???????"" ????????????? | | ???????# ??????? ?????????????? | | ???????# ?????? ??????????????? | | ???????# ! #########???????????????? | | ???????# # #????????????????? | | ????#### r# #????????????????? | | ????# """ u# #????????????????? | | ????# """ ; #????????????????? | | ????# """% @% #????????????????? | | ????# [ #s #????????????????? | | ????# # #????????????????? | | ????# # #????????????????? | | ????# k ""s # #????????????????? | | ????# Y" #% #????????????????? | | ????# "" / #????????????????? | | ????# # #????????????????? | | ????# # #????????????????? | | ????# ######+#########????????????????? | | ????######?# #????????????????????? | | ???????????# """"" #????????????????????? | | ???????????# """"" #????????????????????? | | ???????????# """"" #????????????????????? | | ???????????# """"" #????????????????????? | | ???????????# """"" #????????????????????? | | ???????????#???""" #????????????????????? | | ??????????????????? #????????????????????? | | ?????????????????????????????????????????? | | ?????????????????????????????????????????? | | | | | | | | | | | +----------------------------------------------------+ Best States ------------- Heat Dissipation 25 Energy Generation 10 Energy Capacity 125 Matter Stores 300 Matter Capacity 300 Sight Range 16 Terrain Scan Density 10 Armor Coverage 150 Evasion (%) 40 Recoil Reduction 2 Item Schematics ----------------- None Robot Schematics ------------------ None Fabricated ------------ Nothing Alien Tech Used ----------------- None Achievements -------------- None Challenges ------------ None Game ------ Seed ReactiveAerolevNullifier Manual? 0 Play Time 00:04:54 Cumulative 346.8 hours Start 2024.09.30 @ 16:29:51 End 2024.09.30 @ 16:33:01 Sessions 1 Manual Loads 0 Difficulty Rogue Special Mode None Game No. 254 Rogue 249 Adventurer 5 Explorer 0 Win Type - Total 7 Types 4/0/3/0/0/0/0/0/0 Lore% 68 Gallery% 85 Achievement% 70 Wizard Run 0 Options --------- Layout 2 ASCII 0 Keyboard 0 Movement Mouse Keybinds 0 Fullscreen 2 Font 24/Smallcaps Map View 50x44 Zoom Use 0% Tactical HUD 1 Map Filters NONE Filters NONE Steam 1 RUN: 2e40ea73-8898-4f07-a1ef-a8807f49af8f